bitfinex-derivatives/quotes_SOLF0:USTF0_20240816
["timestamp","ask_amount","ask_price","bid_price","bid_amount"]
[1723802899215,3.4863,143.39,143.37,10.68]
[1723802899529,0.04971724,143.4,143.37,10.68]
[1723802900329,3.53561724,143.4,143.37,10.68]
[1723802900821,10.68,143.38,143.29,53.92518376]
[1723802901028,10.68,143.34,143.29,53.92518376]
[1723802901234,10.68,143.34,143.24,5.0]
[1723802901424,0.05177578,143.33,143.28,10.68]
[1723802901626,0.05177578,143.33,143.28,14.10831977]
[1723802901830,5.0,143.41,143.28,14.10831977]
[1723802901831,5.0,143.41,143.29,1.2441]
[1723802902028,0.04405123,143.32,143.29,6.0778]
[1723802902229,10.68,143.34,143.29,2.5894]
[1723802902428,3.53616936,143.32,143.29,2.5894]
[1723802902828,0.04816936,143.32,143.29,2.5894]
[1723802903421,1.2676,143.4,143.31,10.68]
[1723802903723,3.4874,143.34,143.31,10.68]
[1723802903925,3.4874,143.34,143.3,3.4881]
[1723802903926,3.4874,143.34,143.3,26.8]
[1723802904425,3.4872,143.35,143.3,26.8]
[1723802904742,0.04871274,143.33,143.31,0.05284987]
[1723802904923,0.04871274,143.33,143.31,3.54084987]
[1723802905130,0.05183377,143.33,143.31,0.05284987]
[1723802906425,0.05183377,143.33,143.32,3.4878]
[1723802906622,53.65183377,143.33,143.25,5.0]
[1723802906824,26.8,143.28,143.19,26.8]
[1723802907334,3.4894,143.26,143.22,3.4902]
[1723802907528,26.8,143.28,143.19,28.097]
[1723802907830,26.8,143.3,143.21,26.8]
[1723802908035,31.8,143.3,143.21,26.8]
[1723802908334,0.04615243,143.25,143.21,26.8]
[1723802908726,26.8,143.35,143.24,26.8]
[1723802909028,5.0,143.35,143.27,26.8]
[1723802909251,3.487,143.36,143.31,3.4879]
[1723802909426,3.487,143.36,143.3,26.8]
[1723802909727,0.05026006,143.34,143.32,0.04797087]
[1723802910124,0.05026006,143.34,143.33,3.4874]
[1723802911829,26.8,143.41,143.35,3.4869]
[1723802912537,3.4863,143.39,143.35,3.4869]
[1723802912941,0.05003166,143.38,143.36,0.05057656]
[1723802913234,0.05003166,143.38,143.36,3.53737656]
[1723802913940,3.53643166,143.38,143.36,0.05057656]
[1723802914131,0.05003166,143.38,143.36,0.05057656]
[1723802915039,0.05003166,143.38,143.36,3.53737656]
[1723802915642,0.05003166,143.38,143.37,3.4866]
[1723802915836,0.05003166,143.38,143.36,0.05057656]
[1723802916537,0.05003166,143.38,143.36,3.53727656]
[1723802916738,0.05003166,143.38,143.36,0.05057656]
[1723802917144,0.05003166,143.38,143.37,3.4866]
[1723802917536,3.4856,143.41,143.36,0.05057656]
[1723802918032,3.4856,143.41,143.38,3.4862]
[1723802918742,0.05030939,143.41,143.39,3.486]
[1723802919330,3.53600939,143.41,143.38,3.4862]
[1723802919537,3.53600939,143.41,143.15,10.4754]
[1723802919538,26.8,143.39,143.15,10.4754]
[1723802919735,26.8,143.31,143.22,26.8]
[1723802919941,5.3,143.3,143.22,26.8]
[1723802920140,5.3,143.32,143.26,26.8]
[1723802920342,5.3,143.32,143.27,2.4874]
[1723802920539,3.4882,143.31,143.27,5.9763]
[1723802920737,0.04389607,143.31,143.28,0.04451993]
[1723802921136,3.4884,143.3,143.28,0.04451993]
[1723802921431,5.34389607,143.31,143.28,0.04451993]
[1723802921732,3.4885,143.29,143.28,0.04451993]
[1723802926139,5.34389607,143.31,143.06,53.13738544]
[1723802926341,33.48,143.28,143.18,33.48]
[1723802926640,3.4891,143.27,143.23,3.4898]
[1723802926944,5.3,143.29,143.2,33.48]
[1723802927247,0.0483374,143.26,143.23,0.04888664]
[1723802927645,3.4891,143.27,143.23,3.4898]
[1723802927848,0.04939332,143.26,143.23,3.54260678]
[1723802928244,3.53869332,143.26,143.23,3.54260678]
[1723802928547,0.04939332,143.26,143.23,0.05280678]
[1723802928751,3.4897,143.25,143.23,0.05280678]
[1723802928947,0.04939332,143.26,143.23,0.05280678]
[1723802929341,3.4897,143.24,143.23,0.05280678]
[1723802930242,3.4895,143.25,143.23,0.05280678]
[1723802930745,0.04939332,143.26,143.23,0.05280678]
[1723802931339,3.4896,143.25,143.23,0.05280678]
[1723802931542,0.04939332,143.26,143.23,0.05280678]
[1723802932651,3.4897,143.25,143.23,0.05280678]
[1723802933250,3.4897,143.24,143.23,0.05280678]
[1723802933845,3.4896,143.25,143.23,0.05280678]
[1723802934150,0.04939332,143.26,143.23,0.05280678]
[1723802934649,3.61067624,143.26,143.23,0.05280678]
[1723802934852,3.4897,143.24,143.23,0.05280678]
[1723802939854,3.53869332,143.26,143.23,0.05280678]
[1723802940357,3.53869332,143.26,143.23,3.54270678]
[1723802941060,0.04939332,143.26,143.23,0.05280678]
[1723802942258,3.4887,143.29,143.23,0.05280678]
[1723802942454,38.9,143.32,143.23,0.05280678]
[1723802942656,3.4886,143.29,143.23,3.55974851]
[1723802942854,3.4886,143.29,143.23,3.50694173]
[1723802943055,38.9,143.32,143.23,36.98694173]
[1723802943261,0.05133131,143.29,143.26,0.05270553]
[1723802943556,5.42,143.35,143.26,0.05270553]
[1723802943759,3.4877,143.33,143.25,33.48]
[1723802943959,5.42,143.35,143.25,33.48]
[1723802944456,1.2895,143.4,143.23,8.92694173]
[1723802944457,0.05180388,143.31,143.3,33.48]
[1723802944661,5.42,143.39,143.3,33.48]
[1723802944980,3.4864,143.38,143.34,3.4871]
[1723802945151,5.42,143.39,143.3,34.7526]
[1723802945465,38.9,143.42,143.32,33.48]
[1723802946161,0.04627916,143.38,143.36,0.04976709]
[1723802946465,33.48,143.44,143.36,0.04976709]
[1723802946765,33.48,143.44,143.36,5.46976709]
[1723802946961,36.965,143.44,143.36,5.46976709]
[1723802947353,36.965,143.44,143.4,3.4857]
[1723802947661,0.0497722,143.41,143.4,3.4857]
[1723802948567,3.4852,143.43,143.4,3.4857]
[1723802949265,3.4852,143.43,143.39,3.53279936]
[1723802949461,3.4852,143.43,143.39,0.04679936]
[1723802949862,3.53455568,143.42,143.39,0.04679936]
[1723802950059,0.04905568,143.42,143.39,0.04679936]
[1723802950255,0.04905568,143.42,143.39,3.53279936]
[1723802950456,33.52905568,143.42,143.39,0.04679936]
[1723802950861,3.4856,143.41,143.39,0.04679936]
[1723802951062,33.52905568,143.42,143.39,0.04679936]
[1723802951263,0.04905568,143.42,143.39,0.04679936]
[1723802951463,0.04905568,143.42,143.4,3.4857]
[1723802952756,0.04905568,143.42,143.4,3.4856]
[1723802952968,0.04905568,143.42,143.39,0.04679936]
[1723802953366,0.04905568,143.42,143.4,3.4858]
[1723802953771,0.04905568,143.42,143.39,0.04679936]
[1723802954267,0.04905568,143.42,143.4,3.4857]
[1723802954468,3.4856,143.41,143.39,0.04679936]
[1723802954664,0.04905568,143.42,143.39,0.04679936]
[1723802955058,3.53455568,143.42,143.39,0.04679936]
[1723802955262,0.04905568,143.42,143.39,0.04679936]
[1723802955861,3.4858,143.4,143.39,0.04679936]
[1723802962670,0.04905568,143.42,143.39,0.04679936]
[1723802963268,3.4857,143.41,143.39,0.04679936]
[1723802964070,3.4858,143.4,143.39,0.04679936]
[1723802975384,3.4857,143.41,143.39,0.04679936]
[1723802977073,0.04905568,143.42,143.39,0.04679936]
[1723802977074,3.4858,143.4,143.39,0.04679936]
[1723802981384,3.4857,143.41,143.39,0.04679936]
[1723802983383,3.4857,143.41,143.39,3.53279936]
[1723802983983,3.53455568,143.42,143.39,3.53279936]
[1723802984789,3.4856,143.41,143.39,3.53279936]
[1723802986790,3.4856,143.41,143.39,0.04679936]
[1723802989692,3.4858,143.4,143.39,0.04679936]
[1723802992691,26.78,143.37,143.26,26.78]
[1723802993002,26.78,143.37,143.27,1.3317]
[1723802993296,3.4875,143.34,143.3,3.4881]
[1723802993697,5.34,143.35,143.29,3.4884]
[1723802993894,0.04492449,143.33,143.31,0.05117634]
[1723802994295,3.53262449,143.33,143.31,0.05117634]
[1723802995398,3.4878,143.32,143.31,0.05117634]
[1723802995615,26.78,143.33,143.23,26.78]
[1723802995904,30.28373068,143.33,143.23,26.78]
[1723802996193,30.28373068,143.33,143.22,3.8213]
[1723802996403,26.78,143.31,143.22,30.6013]
[1723802996599,3.4892,143.27,143.23,3.4898]
[1723802996797,3.4892,143.27,143.25,0.04554807]
[1723802997297,3.53552695,143.28,143.25,0.04554807]
[1723802997801,0.04662695,143.28,143.25,0.04554807]
[1723802998598,3.53552695,143.28,143.25,0.04554807]
[1723802999100,0.04662695,143.28,143.25,3.53484807]
[1723802999795,0.04662695,143.28,143.26,3.4892]
[1723803000495,0.04662695,143.28,143.27,3.489]
[1723803000805,3.489,143.27,143.25,0.04554807]
[1723803001901,3.53552695,143.28,143.25,3.53504807]
[1723803003403,0.04662695,143.28,143.25,0.04554807]
[1723803003901,3.53552695,143.28,143.25,3.53494807]
[1723803004319,0.04662695,143.28,143.25,0.04554807]
[1723803004495,3.4891,143.27,143.25,3.53504807]
[1723803004694,0.04662695,143.28,143.25,3.53504807]
[1723803005290,3.53552695,143.28,143.25,3.53504807]
[1723803006302,3.4893,143.26,143.25,0.04554807]
[1723803008305,3.4891,143.27,143.25,0.04554807]
[1723803008493,0.04662695,143.28,143.25,0.04554807]
[1723803008902,3.4893,143.26,143.25,0.04554807]
[1723803011602,3.4891,143.27,143.25,0.04554807]
[1723803011796,0.04662695,143.28,143.25,0.04554807]
[1723803012205,3.4892,143.27,143.25,0.04554807]
[1723803012599,3.489,143.27,143.25,0.04554807]
[1723803013702,3.53542695,143.28,143.25,3.53494807]
[1723803013910,3.53542695,143.28,143.25,0.04554807]
[1723803014103,0.04662695,143.28,143.25,0.04554807]
[1723803014800,0.04662695,143.28,143.27,3.489]
[1723803015199,0.04662695,143.28,143.25,0.04554807]
[1723803016509,0.04662695,143.28,143.26,3.4891]
[1723803018310,0.04662695,143.28,143.25,26.82554807]
[1723803018501,26.78,143.35,143.25,26.82554807]
[1723803018701,0.4035,143.42,143.27,26.78]
[1723803019008,3.4874,143.34,143.28,4.74380653]
[1723803019212,32.9639,143.37,143.3,3.4881]
[1723803019704,0.0447982,143.35,143.32,0.04486885]
[1723803019902,3.4875,143.34,143.32,0.04486885]
[1723803020105,0.0447982,143.35,143.32,0.04486885]
[1723803020633,0.0447982,143.35,143.34,3.4873]
[1723803020817,0.0447982,143.35,143.32,0.04486885]
[1723803021301,0.0447982,143.35,143.33,3.4874]
[1723803022410,0.0447982,143.35,143.34,3.4873]
[1723803024415,0.0447982,143.35,143.34,4.7125]
[1723803030007,0.0447982,143.35,143.34,15.4325]
[1723803031407,0.0447982,143.35,143.34,4.7125]
[1723803036518,0.0447982,143.35,143.32,0.04486885]
[1723803037014,3.5319982,143.35,143.32,3.53256885]
[1723803038119,0.0447982,143.35,143.32,3.53256885]
[1723803038519,3.5319982,143.35,143.32,3.53256885]
[1723803038719,0.0447982,143.35,143.33,3.4875]
[1723803039117,0.0447982,143.35,143.33,2.6875]
[1723803039421,0.0447982,143.35,143.34,3.4873]
[1723803040121,0.0447982,143.35,143.33,3.4875]
[1723803041815,0.0447982,143.35,143.34,3.4873]
[1723803042332,3.43360723,143.48,143.38,3.4863]
[1723803042648,101.4895447,143.43,143.34,26.8]
[1723803043127,3.4858,143.41,143.38,3.4863]
[1723803043815,101.4895447,143.43,143.36,30.23056195]
[1723803044017,5.12,143.44,143.38,0.0449173]
[1723803044018,0.04826538,143.41,143.38,0.0449173]
[1723803044419,0.04826538,143.41,143.4,3.4858]
[1723803047923,0.04826538,143.41,143.38,0.0449173]
[1723803048320,0.04826538,143.41,143.39,3.4859]
[1723803048722,0.04826538,143.41,143.38,0.0449173]
[1723803048927,0.04826538,143.41,143.38,3.5311173]
[1723803049227,0.04826538,143.41,143.38,0.0449173]
[1723803050230,0.04826538,143.41,143.39,3.4861]
[1723803056232,3.53396538,143.41,143.38,3.5311173]
[1723803056432,3.53396538,143.41,143.38,0.0449173]
[1723803056738,3.53396538,143.41,143.38,3.5311173]
[1723803058420,0.04826538,143.41,143.39,3.4861]
[1723803059127,0.04826538,143.41,143.38,3.5311173]
[1723803059128,3.53386538,143.41,143.38,3.5311173]
[1723803059927,3.4859,143.4,143.38,0.0449173]
[1723803060127,10.75826538,143.41,143.38,0.0449173]
[1723803060428,14.1961,143.39,143.38,0.0449173]
[1723803064439,14.1961,143.39,143.31,60.33420959]
[1723803064440,10.71,143.39,143.31,60.33420959]
[1723803064740,10.71,143.33,143.22,3.8029]
[1723803064939,10.71,143.32,143.25,10.71]
[1723803065234,10.71,143.32,143.26,3.4891]
[1723803065639,3.53497728,143.3,143.28,0.04919696]
[1723803068238,3.4885,143.29,143.28,0.04919696]
[1723803068638,3.53487728,143.3,143.28,0.04919696]
[1723803069342,3.53487728,143.3,143.28,10.75919696]
[1723803069343,0.04657728,143.3,143.28,10.75919696]
[1723803069543,0.04657728,143.3,143.29,10.71]
[1723803069750,0.04657728,143.3,143.29,14.1985]
[1723803072348,3.4876,143.33,143.3,3.4882]
[1723803073450,3.53843562,143.33,143.3,3.4882]
[1723803078357,0.05083562,143.33,143.29,10.71]
[1723803078854,3.53853562,143.33,143.3,3.4881]
[1723803083267,0.05083562,143.33,143.29,10.71]
[1723803084462,3.53843562,143.33,143.3,3.4882]
[1723803084675,0.05083562,143.33,143.3,3.49546266]
[1723803085164,0.05083562,143.33,143.32,3.4878]
[1723803091368,0.05083562,143.33,143.31,0.04393352]
[1723803092058,0.05083562,143.33,143.31,3.53183352]
[1723803093264,0.05083562,143.33,143.32,3.4878]
[1723803096772,0.05083562,143.33,143.31,3.53193352]
[1723803098374,10.71,143.32,143.31,0.04393352]
[1723803099170,14.1978,143.32,143.31,0.04393352]
[1723803099766,3.4878,143.32,143.31,0.04393352]
[1723803106172,14.1978,143.32,143.31,0.04393352]
[1723803106381,3.4889,143.28,143.25,3.4894]
[1723803106674,10.71,143.28,143.24,1.2942]
[1723803107572,0.04908619,143.27,143.25,0.05184023]
[1723803108278,3.53818619,143.27,143.25,0.05184023]
[1723803110986,3.4893,143.26,143.25,0.05184023]
[1723803111279,10.71,143.26,143.18,10.71]
[1723803111481,10.71,143.26,143.2,3.4906]
[1723803111482,3.4899,143.24,143.2,3.4906]
[1723803111671,10.71,143.26,143.2,3.4906]
[1723803112078,3.4899,143.24,143.2,3.4906]
[1723803112682,3.4899,143.24,143.22,0.05032122]
[1723803112683,3.53682851,143.24,143.22,0.05032122]
[1723803113077,3.49,143.23,143.22,0.05032122]
[1723803113682,14.2,143.23,143.22,0.05032122]
[1723803113878,15.45,143.23,143.17,3.4913]
[1723803114081,10.71,143.21,143.17,3.4913]
[1723803114475,14.2006,143.21,143.17,3.4913]
[1723803114696,4.74,143.23,143.15,3.4918]
[1723803114697,10.71,143.2,143.15,3.4918]
[1723803114881,0.05102059,143.19,143.16,0.05298609]
[1723803115480,3.4914,143.17,143.16,0.05298609]
[1723803115987,0.05102059,143.19,143.16,0.05298609]
[1723803116187,3.4913,143.18,143.16,0.05298609]
[1723803116388,0.05102059,143.19,143.16,0.05298609]
[1723803116689,3.4914,143.18,143.16,0.05298609]
[1723803116881,0.05102059,143.19,143.16,0.05298609]
[1723803117389,3.4914,143.18,143.16,0.05298609]
[1723803120289,8.12212059,143.19,143.16,0.05298609]
[1723803120493,18.83212059,143.19,143.16,0.05298609]
[1723803120688,15.34102059,143.19,143.16,0.05298609]
[1723803121883,15.34102059,143.19,143.16,3.54468609]
[1723803122286,18.83222059,143.19,143.16,0.05298609]
[1723803122600,14.25222059,143.19,143.16,0.05298609]
[1723803124486,3.4912,143.18,143.16,0.05298609]
[1723803124987,14.2012,143.18,143.16,0.05298609]
[1723803125293,3.4914,143.17,143.16,0.05298609]
[1723803125491,10.71,143.18,143.16,0.05298609]
[1723803125693,3.4913,143.18,143.16,0.05298609]
[1723803127187,10.76102059,143.19,143.09,4.74]
[1723803127389,10.71,143.16,143.1,10.71]
[1723803127684,4.58,143.18,143.13,10.71]
[1723803127889,3.4916,143.17,143.13,10.71]
[1723803128090,10.71,143.18,143.13,10.71]
[1723803128290,0.04729005,143.17,143.14,0.05111492]
[1723803128491,3.4917,143.16,143.14,0.05111492]
[1723803129283,15.33729005,143.17,143.14,0.05111492]
[1723803130094,3.4918,143.16,143.14,0.05111492]
[1723803130592,15.33729005,143.17,143.14,0.05111492]
[1723803130995,3.4919,143.16,143.14,0.05111492]
[1723803131391,10.71,143.16,143.14,0.05111492]
[1723803131793,3.4919,143.15,143.14,0.05111492]
[1723803132997,14.2017,143.16,143.14,0.05111492]
[1723803133298,4.62729005,143.17,143.14,0.05111492]
[1723803133497,4.62729005,143.17,143.14,3.54311492]
[1723803133797,8.11889005,143.17,143.14,0.05111492]
[1723803134099,3.53889005,143.17,143.14,0.05111492]
[1723803134691,3.4918,143.16,143.14,0.05111492]
[1723803134892,10.71,143.16,143.14,0.05111492]
[1723803135288,3.4919,143.15,143.14,0.05111492]
[1723803136296,10.71,143.16,143.14,0.05111492]
[1723803138309,14.2019,143.16,143.14,0.05111492]
[1723803139205,3.4919,143.15,143.14,0.05111492]
[1723803139412,10.71,143.16,143.14,0.05111492]
[1723803139603,14.2018,143.16,143.14,0.05111492]
[1723803141121,3.4919,143.15,143.14,0.05111492]
[1723803141321,14.2019,143.15,143.14,0.05111492]
[1723803142037,10.71,143.15,143.1,3.4931]
[1723803142217,10.71,143.11,142.92,3.22314753]
[1723803142411,42.84,143.19,142.89,27.68271011]
[1723803142412,10.71,143.09,143.02,15.29]
[1723803142618,10.71,143.09,143.03,3.4104413]
[1723803142818,10.71,143.09,143.02,16.6435]
[1723803143019,0.0510976,143.07,143.06,3.4939]
[1723803144026,0.0510976,143.07,143.05,3.5420872]
[1723803144324,0.0510976,143.07,143.05,0.0478872]
[1723803144826,0.0510976,143.07,143.06,3.4941]
[1723803146232,53.6010976,143.07,142.99,4.58]
[1723803146522,10.71,143.04,142.95,5.9251]
[1723803146727,14.2048,143.04,142.96,15.29]
[1723803146922,10.71,143.04,142.96,13.3369]
[1723803147126,10.71,143.04,142.98,10.71]
[1723803147431,0.0467288,143.01,143.0,3.4954]
[1723803148324,0.0467288,143.01,143.0,8.0754]
[1723803148516,0.0467288,143.01,143.0,4.58]
[1723803149324,0.0467288,143.01,142.96,2.6269]
[1723803150041,0.0467288,143.01,142.96,6.09788636]
[1723803150227,10.7567288,143.01,142.96,2.6269]
[1723803150526,14.2522288,143.01,142.97,3.4963]
[1723803150932,0.0467288,143.01,142.98,3.4959]
[1723803151221,0.0467288,143.01,142.96,13.3369]
[1723803151425,0.0467288,143.01,142.96,2.6269]
[1723803151821,0.0467288,143.01,142.96,7.4069]
[1723803152218,0.0467288,143.01,142.96,2.6269]
[1723803152421,10.71,143.0,142.96,7.4069]
[1723803152626,10.71,143.0,142.98,3.4959]
[1723803152926,10.71,142.99,142.96,2.6269]
[1723803153325,10.71,142.99,142.97,3.4962]
[1723803154532,0.0467288,143.01,142.98,3.4961]
[1723803154728,10.71,143.0,142.98,3.4961]
[1723803155328,10.71,142.99,142.98,3.4961]
[1723803156131,10.71,142.99,142.96,2.6269]
[1723803156132,10.71,142.99,142.97,3.4962]
[1723803156328,10.71,142.99,142.96,1.2857]
[1723803157430,10.71,143.0,142.96,1.2857]
[1723803157734,10.71,143.0,142.94,11.982]
[1723803157928,10.71,143.0,142.94,13.2072]
[1723803158236,10.71,143.0,142.98,3.496]
[1723803160328,0.0467288,143.01,142.98,3.496]
[1723803160629,10.7567288,143.01,142.98,3.496]
[1723803160827,0.0467288,143.01,142.95,10.71]
[1723803161032,0.0467288,143.01,142.97,10.71]
[1723803161227,0.0467288,143.01,142.98,10.71]
[1723803161535,0.0467288,143.01,143.0,3.4956]
[1723803161924,10.71,143.04,143.02,3.495]
[1723803162242,42.84,143.12,142.98,15.49]
[1723803162243,76.10262415,143.09,142.99,1.2733]
[1723803162435,76.10828099,143.09,143.05,3.4942]
[1723803162653,10.71,143.08,143.01,10.71]
[1723803162929,10.71,143.08,143.01,14.26462869]
[1723803163122,10.71,143.09,143.03,0.0467288]
[1723803163323,0.04637504,143.06,143.02,10.71]
[1723803163521,0.04637504,143.06,143.05,0.0467288]
[1723803163730,0.04637504,143.06,143.05,3.5411288]
[1723803163931,47.62,143.12,143.05,0.0467288]
[1723803164133,10.71,143.07,143.05,0.0467288]
[1723803164334,10.71,143.09,143.05,0.0467288]
[1723803164828,10.71,143.09,143.07,3.4938]
[1723803165236,10.71,143.09,143.05,0.0467288]
[1723803165425,10.71,143.09,143.08,3.4936]
[1723803165633,10.75524327,143.09,143.08,3.4936]
[1723803166538,0.04524327,143.09,143.08,3.4936]
[1723803167533,10.71,143.13,143.06,12.0298]
[1723803168239,10.71,143.12,143.1,3.493]
[1723803168440,10.71,143.12,143.06,12.0298]
[1723803168633,10.71,143.12,143.08,0.05172932]
[1723803168840,0.04581817,143.1,143.09,3.4934]
[1723803169337,10.71,143.13,143.12,3.4927]
[1723803169537,3.4916,143.17,143.07,11.9935]
[1723803169739,10.71,143.13,143.12,3.4925]
[1723803170738,10.71,143.13,143.11,3.54031299]
[1723803171042,10.71,143.12,143.11,0.04761299]
[1723803171838,3.4926,143.13,143.11,0.04761299]
[1723803172140,26.86229895,143.14,143.11,0.04761299]
[1723803172141,30.35459895,143.14,143.11,0.04761299]
[1723803173239,3.4924,143.13,143.11,0.04761299]
[1723803173942,26.86229895,143.14,143.11,0.04761299]
[1723803173943,26.81,143.12,143.11,0.04761299]
[1723803174364,30.3027,143.12,143.11,0.04761299]
[1723803174736,26.81,143.12,143.06,1.3198]
[1723803175737,3.5409679,143.1,143.07,3.4938]
[1723803175938,3.5409679,143.1,143.08,0.04616405]
[1723803176238,26.8576679,143.1,143.08,0.04616405]
[1723803176546,3.4934,143.09,143.08,0.04616405]
[1723803177943,30.3509679,143.1,143.08,0.04616405]
[1723803178146,26.8576679,143.1,143.08,0.04616405]
[1723803178539,3.4934,143.09,143.08,0.04616405]
[1723803180142,30.3509679,143.1,143.08,0.04616405]
[1723803180338,26.8576679,143.1,143.08,0.04616405]
[1723803180545,0.0476679,143.1,143.08,0.04616405]
[1723803181647,0.0476679,143.1,143.08,3.53966405]
[1723803181947,0.0476679,143.1,143.08,0.04616405]
[1723803182648,0.0476679,143.1,143.09,3.4934]
[1723803185353,3.492,143.15,143.11,3.4928]
[1723803186152,31.57,143.16,143.09,1.236]
[1723803186449,0.05309282,143.14,143.11,0.04416531]
[1723803186644,26.86309282,143.14,143.11,0.04416531]
[1723803187150,26.86309282,143.14,143.11,3.53696531]
[1723803187352,26.86309282,143.14,143.11,0.04416531]
[1723803187745,3.4926,143.13,143.11,0.04416531]
[1723803188646,0.05309282,143.14,143.11,0.04416531]
[1723803189054,3.54539282,143.14,143.11,3.53696531]
[1723803190757,3.54539282,143.14,143.11,0.04416531]
[1723803190758,3.4925,143.13,143.11,0.04416531]
[1723803191254,26.81,143.12,143.11,0.04416531]
[1723803191449,30.3027,143.12,143.11,0.04416531]
[1723803191655,26.81,143.12,143.05,1.2634]
[1723803191957,26.81,143.09,143.02,2.6389]
[1723803192145,3.4939,143.07,143.04,3.4945]
[1723803192649,3.4938,143.08,143.04,3.4945]
[1723803192850,0.04637533,143.07,143.04,3.54396917]
[1723803193056,0.04637533,143.07,143.05,3.4943]
[1723803195356,3.54027533,143.07,143.04,3.54396917]
[1723803195659,0.04637533,143.07,143.04,0.04946917]
[1723803196052,0.04637533,143.07,143.05,3.4944]
[1723803197458,0.04637533,143.07,143.04,3.54396917]
[1723803197860,3.54027533,143.07,143.04,3.54396917]
[1723803198058,0.04637533,143.07,143.05,3.4942]
[1723803198259,0.04637533,143.07,143.04,0.04946917]
[1723803198563,0.04637533,143.07,143.05,3.4941]
[1723803198858,0.04637533,143.07,143.04,0.04946917]
[1723803199861,0.04637533,143.07,143.05,3.4942]
[1723803201256,26.85637533,143.07,143.04,0.04946917]
[1723803201562,3.4941,143.06,143.04,0.04946917]
[1723803201969,10.74,143.05,143.04,0.04946917]
[1723803202470,18.9944,143.05,143.04,0.04946917]
[1723803204058,35.1044,143.05,143.04,0.04946917]
[1723803207266,30.3444,143.05,143.04,0.04946917]
[1723803207962,26.85,143.05,143.04,0.04946917]
[1723803208177,3.4942,143.06,143.04,0.04946917]
[1723803208370,31.65637533,143.07,143.04,0.04946917]
[1723803208576,3.4944,143.05,143.04,0.04946917]
[1723803210970,3.4943,143.06,143.04,0.04946917]
[1723803211875,0.04637533,143.07,143.04,0.04946917]
[1723803212071,0.04637533,143.07,143.04,3.54396917]
[1723803212270,0.04637533,143.07,143.04,0.04946917]
[1723803213497,0.04637533,143.07,143.06,3.4941]
[1723803216689,30.343,143.11,143.08,3.4936]
[1723803216888,26.85,143.11,143.08,3.4936]
[1723803217498,31.55,143.13,143.09,3.4934]
[1723803217781,0.05025768,143.12,143.1,0.04787888]
[1723803218185,0.05025768,143.12,143.1,3.54097888]
[1723803218382,3.54295768,143.12,143.1,0.04787888]
[1723803219190,3.4929,143.11,143.1,0.04787888]
[1723803219486,30.3429,143.11,143.1,0.04787888]
[1723803220985,0.05025768,143.12,143.1,0.04787888]
[1723803221495,3.4929,143.11,143.1,0.04787888]
[1723803222684,30.3429,143.11,143.1,0.04787888]
[1723803224384,3.4934,143.09,143.04,4.7]
[1723803224584,26.85,143.09,143.04,4.7]
[1723803224885,0.05025768,143.12,143.07,3.4938]
[1723803224886,3.4933,143.1,143.07,3.4938]
[1723803225693,3.54569544,143.1,143.07,3.54014097]
[1723803225994,3.4934,143.09,143.07,0.04634097]
[1723803226394,3.4936,143.08,143.07,0.04634097]
[1723803226590,0.05239544,143.1,143.07,0.04634097]
[1723803227093,3.4936,143.09,143.07,0.04634097]
[1723803227588,3.54559544,143.1,143.07,0.04634097]
[1723803227896,10.78239544,143.1,143.07,0.04634097]
[1723803228692,3.4935,143.09,143.07,0.04634097]
[1723803228892,10.73,143.09,143.07,0.04634097]
[1723803229293,3.4936,143.08,143.07,0.04634097]
[1723803233590,42.92,143.08,142.93,10.4919]
[1723803233791,10.73,143.02,142.96,10.73]
[1723803233999,14.2251,143.02,143.0,3.4955]
[1723803234208,14.2251,143.02,142.96,14.21165235]
[1723803234497,3.4954,143.01,142.98,3.4959]
[1723803234697,0.05302011,143.0,142.98,0.04595803]
[1723803235394,10.73,142.99,142.98,0.04595803]
[1723803235696,14.2258,142.99,142.98,0.04595803]
[1723803235993,30.3658,142.99,142.98,0.04595803]
[1723803236495,30.3658,142.99,142.94,2.6175]
[1723803236496,26.87,142.99,142.94,3.497]
[1723803236684,4.7,142.98,142.9,1.3042]